[Event "67th Mexican-ch Open 2022"]
[Site "Chihuahua"]
[Date "2022.04.14"]
[Round "2.10"]
[White "Quiroga Jaquez, Angel Ivan"]
[Black "Ibarra Chami, Luis Fernando"]
[Result "0-1"]
[ECO "E51"]
[WhiteElo "2185"]
[BlackElo "2451"]
[Annotator "TA"]
[PlyCount "60"]
[EventDate "2022.04.12"]
[EventType "swiss"]
[EventCountry "MEX"]
[SourceTitle "playchess.com"]
[Source "ChessBase"]
[SourceQuality "1"]
[TimeControl "5400+30"]

{[%evp 13,60,-7,0,-8,1,-16,36,-27,0,-12,0,0,0,0,14,4,40,61,39,28,70,0,49,0,0,0,0,0,0,0,0,0,0,-16,-14,-55,-43,-119,-120,-166,-139,-134,-136,-164,-135,-322,-316,-29978,-29979]} 1. d4 {[%emt 0:00:53]} d5 {[%emt 0:00:22]} 2. Nf3 {[%emt 0:00:48]} Nf6 {[%emt 0:00:41]} 3. c4 {[%emt 0:00:53]} e6 {[%emt 0:00:27]} 4. Nc3 {[%emt 0:00:29]} Bb4 {[%emt 0:03:52]} 5. Bd2 {[%emt 0:05:05]} O-O {[%emt 0:02:14]} 6. e3 {[%emt 0:00:25]} b6 {[%emt 0:01:36]} 7. cxd5 {[%emt 0:00:16]} exd5 {[%emt 0:00:10]} 8. Ne5 {[%emt 0:02:20] E51: Nimzo-Indian: Rubinstein: 4...0-0 5 Nf3 d5.} Bd6 {[%emt 0:10:56] [#]} 9. f4 $146 {[%emt 0:18:02]} ({Predecessor:} 9. Bd3 Re8 10. f4 Ba6 11. Bxa6 Nxa6 12. O-O c5 13. Be1 Nc7 14. Bh4 Be7 15. Rf3 Qd6 {½-½ (44) Cosman,A (2133)-Bulmaga,I (2396) Mamaia 2021}) 9... Bf5 {[%emt 0:06:56]} (9... c5 $11) 10. Qf3 {[%emt 0:03:44]} (10. Be2 $14) 10... c6 {[%emt 0:14:42]} 11. Rc1 {[%emt 0:29:41]} Qe7 {[%emt 0:19:02]} 12. g4 {[%emt 0:04:32]} Be4 {[%emt 0:01:50]} 13. Nxe4 {[%emt 0:00:17]} Nxe4 {[%emt 0:00:11]} 14. Bd3 {[%emt 0:03:43]} Bb4 {[%emt 0:15:24]} (14... Bxe5 $5 15. fxe5 f6 16. Bxe4 dxe4 17. Qxe4 fxe5 $11) 15. Bxe4 {[%emt 0:01:47]} dxe4 {[%emt 0:00:08]} 16. Qg2 {[%emt 0:02:13]} ({Inferior is} 16. Qxe4 f6 17. a3 Bxd2+ 18. Kxd2 fxe5 19. dxe5 Nd7 $17) 16... f6 {[%emt 0:04:11]} 17. Nc4 {[%emt 0:02:24]} ({Better is} 17. Nxc6 $14 Nxc6 18. Rxc6) 17... Nd7 {[%emt 0:03:32]} (17... Na6 $11) 18. a3 {[%emt 0:00:20]} (18. O-O $14) 18... Bxd2+ $1 $11 {[%emt 0:00:32]} 19. Nxd2 {[%emt 0:00:42]} c5 {[%emt 0:01:13]} 20. O-O {[%emt 0:10:24]} ({Avoid the trap} 20. Nxe4 $2 Rae8 21. dxc5 Qxe4 22. Qxe4 Rxe4 $19) 20... cxd4 {[%emt 0:00:20]} 21. Rc4 {[%emt 0:01:11]} dxe3 {[%emt 0:03:04]} 22. Rxe4 {[%emt 0:00:06]} Qd6 {[%emt 0:00:45]} 23. Rxe3 {[%emt 0:02:19]} Rae8 {[%emt 0:03:27]} 24. Qf2 {[%emt 0:00:59]} Nc5 $1 {[%emt 0:00:49]} 25. Rxe8 {[%emt 0:05:17]} ({White should try} 25. Nc4 $15 Qd7 26. Qe2) 25... Rxe8 $17 {[%emt 0:00:05]} 26. Re1 {[%emt 0:00:32]} (26. g5 $17) 26... Rxe1+ {[%emt 0:01:10]} 27. Qxe1 {[%emt 0:00:04] [#]} Qd4+ $1 {[%emt 0:00:28]} 28. Kg2 {[%emt 0:00:32][%cal Re1e8]} Kf8 {[%emt 0:01:37] Prevents Qe8+. Hoping for ...Nd3.} 29. b4 $2 {[%emt 0:01:35]} (29. Qf2 $17 Qxb2 30. Qe3) 29... Nd3 $19 {[%emt 0:00:16]} 30. Qd1 {[%emt 0:02:01]} (30. Qf1 $19) 30... Qf2+ {[%emt 0:00:41] Weighted Error Value: White=0.47/Black=0.18 (very precise)} 0-1

[Event "67th Mexican-ch Open 2022"]
[Site "Chihuahua"]
[Date "2022.04.14"]
[Round "2.11"]
[White "Perez Gormaz, Matias"]
[Black "Luna Javier, Edgar Froylan"]
[Result "1/2-1/2"]
[ECO "B22"]
[WhiteElo "2404"]
[BlackElo "2148"]
[Annotator "TA"]
[PlyCount "115"]
[EventDate "2022.04.12"]
[EventType "swiss"]
[EventCountry "MEX"]
[SourceTitle "playchess.com"]
[Source "ChessBase"]
[SourceQuality "1"]
[TimeControl "5400+30"]

{[%evp 9,115,3,16,6,8,14,18,14,39,20,88,70,74,20,20,13,15,23,20,0,0,0,0,0,0,0,54,50,56,72,72,54,57,78,74,14,14,19,7,-4,-4,-8,49,50,87,65,102,0,0,0,0,0,0,0,0,0,0,0,0,0,0,-8,0,0,0,0,0,0,0,0,0,-298,-23,-23,-23,-52,-59,-80,-90,-90,-61,-54,-54,-104,-60,-102,-79,-243,-208,-310,-270,-143,-142,-143,-56,-74,-69,-106,-156,-156,-156,-156,-53,-115,-79,-101,-115,-156]} 1. e4 {[%emt 0:00:07][%cal Be2e4,Be4e5][%mdl 32]} c5 {[%emt 0:00:12]} 2. c3 {[%emt 0:00:17]} Nf6 {[%emt 0:00:22]} 3. e5 {[%emt 0:00:27]} Nd5 {[%emt 0:00:06]} 4. Nf3 {[%emt 0:00:09]} Nc6 {[%emt 0:01:43]} 5. Bc4 {[%emt 0:00:09]} e6 {[%emt 0:04:26]} 6. d4 {[%emt 0:00:20] B22: Sicilian: 2 c3.} d6 {[%emt 0:02:25]} 7. O-O {[%emt 0:01:36]} dxe5 {[%emt 0:04:30]} 8. dxe5 {[%emt 0:00:07] The position is equal.} Be7 {[%emt 0:00:47]} 9. Qe2 {[%emt 0:00:36]} O-O {[%emt 0:05:51]} (9... a6 $11 {keeps the balance.}) 10. Rd1 {[%emt 0:02:11]} Qc7 {[%emt 0:05:53]} 11. Bxd5 {[%emt 0:00:52]} ({Better is} 11. Qe4 $16) 11... exd5 $11 {[%emt 0:00:06]} 12. Rxd5 {[%emt 0:00:06]} Be6 {[%emt 0:00:53]} 13. Rd1 {[%emt 0:00:11]} Rad8 {[%emt 0:01:11][%cal Oe6c4] [#]} 14. Rxd8 $146 {[%emt 0:02:16]} ({Predecessor:} 14. Re1 Bf5 15. Bf4 Qb6 16. b3 c4 17. Be3 Bc5 18. Nbd2 Bd3 19. Bxc5 Qxc5 20. Qe3 Qxe3 21. Rxe3 cxb3 22. axb3 {1-0 (38) Jensen,A (2245)-Knudsen,O (2290) Espergarde 1978}) 14... Rxd8 {[%emt 0:00:06]} 15. Bf4 $1 {[%emt 0:03:53]} Qb6 {[%emt 0:17:47][%cal Ob6b2] And now ...Qxb2! would win.} 16. Na3 {[%emt 0:10:32]} Bd5 {[%emt 0:09:36]} 17. h3 {[%emt 0:06:41]} Na5 {[%emt 0:04:58]} (17... h6 $11) 18. b3 $14 {[%emt 0:05:38]} Qc6 {[%emt 0:07:23]} 19. Rd1 {[%emt 0:02:49]} a6 {[%emt 0:13:06] Prevents Nb5.} 20. Nc2 {[%emt 0:00:47]} Bxf3 {[%emt 0:05:19]} 21. Rxd8+ {[%emt 0:00:54]} Bxd8 {[%emt 0:01:29]} 22. Qxf3 {[%emt 0:07:51]} (22. gxf3 $16 Qg6+ 23. Kh2) 22... Qxf3 $11 {[%emt 0:00:05]} 23. gxf3 $14 {[%emt 0:00:04][%mdl 4096] Endgame KBN-KBN} Nc6 {[%emt 0:00:36]} 24. Bg3 {[%emt 0:01:35]} Ba5 {[%emt 0:01:56]} 25. c4 {[%emt 0:01:09]} Bc3 {[%emt 0:02:17]} (25... Nd4 $1 $11 26. Nxd4 cxd4) 26. f4 {[%emt 0:00:34]} Kf8 {[%emt 0:01:24]} 27. Kf1 {[%emt 0:01:56]} f6 {[%emt 0:01:34][%cal Rf6e5]} 28. e6 {[%emt 0:07:34]} ({White should try} 28. Ke2 $16) 28... Nd4 $11 {[%emt 0:04:24]} 29. Ne3 {[%emt 0:15:31]} Bd2 {[%emt 0:00:01]} 30. f5 {[%emt 0:02:18]} Bxe3 {[%emt 0:01:58]} 31. Bd6+ {[%emt 0:00:04]} Ke8 {[%emt 0:00:05]} 32. fxe3 {[%emt 0:00:07]} Nxf5 {[%emt 0:00:11]} 33. Bxc5 {[%emt 0:00:02] KB-KN} Ng3+ {[%emt 0:00:52]} 34. Kg2 {[%emt 0:04:22]} Ne4 {[%emt 0:00:02]} 35. Ba3 {[%emt 0:00:49]} b6 {[%emt 0:01:25]} 36. h4 {[%emt 0:03:33]} Nc5 {[%emt 0:00:27]} 37. e7 {[%emt 0:05:05]} h5 {[%emt 0:01:54]} 38. Kf3 {[%emt 0:07:28]} g5 {[%emt 0:00:02]} 39. b4 {[%emt 0:01:41]} g4+ {[%emt 0:00:45]} 40. Kf4 $2 {[%emt 0:01:09][%mdl 8192]} (40. Kg2 $11 Ne4 41. b5) 40... Ne6+ $2 {[%emt 0:00:17]} ({Black should play} 40... Nd3+ $19 41. Ke4 Nf2+ 42. Kf4 b5) 41. Kg3 {[%emt 0:01:55]} ({Don't blunder} 41. Kf5 $2 g3 $1 42. Kxe6 g2 $19) 41... b5 {[%emt 0:00:01]} 42. c5 {[%emt 0:00:48]} Kxe7 {[%emt 0:00:16]} 43. e4 {[%emt 0:00:17] [#]} Nd4 $1 {[%emt 0:00:44] aiming for ...Nc2.} 44. Bb2 {[%emt 0:00:12]} Ne2+ {[%emt 0:01:58]} 45. Kf2 {[%emt 0:01:55]} Nf4 {[%emt 0:00:00] Strongly threatening ...Nd3+.} 46. Bc3 {[%emt 0:01:25]} (46. Kf1 $15) 46... Ke6 {[%emt 0:00:38]} (46... g3+ {is interesting.} 47. Kf3 g2 48. Bd4 Nd3) 47. a3 {[%emt 0:01:24]} Ke7 {[%emt 0:00:26]} 48. Bd2 $2 {[%emt 0:02:25]} (48. Ba1 $17) 48... Ng6 {[%emt 0:00:13]} 49. Kg3 {[%emt 0:00:23]} (49. c6 $142) 49... Ne5 $19 {[%emt 0:00:01]} 50. Bc3 {[%emt 0:00:38]} ({White must play} 50. Be3 $19) 50... Nc4 $17 {[%emt 0:00:25]} 51. Kf4 {[%emt 0:00:04]} Ke6 {[%emt 0:00:25]} (51... Nxa3 $17 {Threatens to win with ...Nc4.} 52. e5 fxe5+ 53. Bxe5 Nc2) 52. c6 $1 $15 {[%emt 0:00:50] [#]} Ne5 $1 {[%emt 0:00:46]} ({Don't play} 52... Kd6 53. Bxf6 Nxa3 54. Be5+ Kxc6 55. Kg5 $11) 53. Bxe5 {[%emt 0:00:42]} fxe5+ {[%emt 0:00:05]} 54. Kg3 {[%emt 0:00:09]} Kd6 {[%emt 0:00:05]} 55. Kg2 {[%emt 0:00:14]} Kxc6 {[%emt 0:00:02]} 56. Kg3 {[%emt 0:00:04]} (56. Kf2 $15) 56... a5 {[%emt 0:00:18]} 57. Kg2 {[%emt 0:00:02]} (57. bxa5 Kb7 58. Kg2 Ka6 59. Kg3 Kxa5 60. Kh2 Ka4 61. Kg2 Kxa3 62. Kf2 b4 63. Ke2 b3 64. Kd3 b2 65. Kc4 b1=Q 66. Kc5 g3 67. Kd6 g2 68. Ke6 g1=Q 69. Kf7 Qb7+ 70. Kf8 Qgg7+ 71. Ke8 Qh8#) 57... Kd7 {[%emt 0:01:06]} 58. Kg3 {[%emt 0:00:03] Weighted Error Value: White=0.27 (precise) /Black=0.22 (precise)} (58. bxa5 {leads to mate.} Kc6 59. a6 Kb6 60. a7 Kxa7 61. Kh1 Kb6 62. Kh2 Ka5 63. Kg2 Ka4 64. Kg3 Kxa3 65. Kf2 b4 66. Ke3 b3 67. Kd3 b2 68. Kc4 b1=Q 69. Kc5 g3 70. Kd6 g2 71. Ke7 g1=Q 72. Kf6 Qbb6+ 73. Kf5 Qgg6+ 74. Kxe5 Qbd6#) 1/2-1/2

[Event "67th Mexican-ch Open 2022"]
[Site "Chihuahua"]
[Date "2022.04.14"]
[Round "2.11"]
[White "Steinberg, Ellis"]
[Black "Perez Gormaz, Matias"]
[Result "*"]
[WhiteElo "1808"]
[BlackElo "2404"]
[Annotator "TA"]
[PlyCount "42"]
[EventDate "2022.04.12"]
[EventType "swiss"]
[EventCountry "MEX"]
[SourceTitle "playchess.com"]
[Source "ChessBase"]
[SourceQuality "1"]
[TimeControl "5400+30"]

{[%evp 9,13,24,19,17,21,12]} 1. e4 {[%emt 0:00:07]} c5 {[%emt 0:00:12]} 2. c3 {[%emt 0:00:17]} Nf6 {[%emt 0:00:22]} 3. e5 {[%emt 0:00:27]} Nd5 {[%emt 0:00:06]} 4. Nf3 {[%emt 0:00:09]} Nc6 {[%emt 0:01:43]} 5. Bc4 {[%emt 0:00:09]} e6 {[%emt 0:04:26]} 6. d4 {[%emt 0:00:20] B22: Sicilian: 2 c3.} d6 {[%emt 0:02:25]} 7. O-O {[%emt 0:01:36] [#] An uneventful encounter.} {Predecessor:} cxd4 $146 8. cxd4 Nb6 9. Bb3 dxe5 10. dxe5 Qxd1 11. Rxd1 Be7 12. Nc3 O-O 13. Be3 Nd7 14. Bf4 Nc5 15. Bc2 b6 16. Ne4 Nb4 17. Bb1 Bb7 18. Nd6 Bxf3 19. gxf3 Rad8 20. Be3 Nd5 21. Bxc5 bxc5 {0-1 (40) Zarnicki,P (2514)-Andreikin,D (2724) Chess.com INT 2022} *

[Event "67th Mexican-ch Open 2022"]
[Site "Chihuahua"]
[Date "2022.04.14"]
[Round "2.12"]
[White "Fernandez Hernandez, Arturo A."]
[Black "Martinez Martinez, Ian Alf"]
[Result "*"]
[WhiteElo "2376"]
[BlackElo "1821"]
[Annotator "TA"]
[PlyCount "36"]
[EventDate "2022.04.12"]
[EventType "swiss"]
[EventCountry "MEX"]
[SourceTitle "playchess.com"]
[Source "ChessBase"]
[SourceQuality "1"]
[TimeControl "5400+30"]

{[%evp 10,12,14,8,16]} 1. Nf3 {[%emt 0:00:07]} d5 {[%emt 0:00:32]} 2. b3 {[%emt 0:00:19]} Bg4 {[%emt 0:01:23]} 3. Bb2 {[%emt 0:00:14]} Nd7 {[%emt 0:00:11]} 4. g3 {[%emt 0:01:00]} Ngf6 {[%emt 0:00:34]} 5. Bg2 {[%emt 0:02:17]} e6 {[%emt 1:30:20]} 6. O-O {[%emt 0:00:57]} Bd6 {[%emt 0:01:26] [#] Not much happened in this game. A12: English Opening: 1...c6 with b3 by White.} {Predecessor:} 7. c4 $146 c6 8. d3 O-O 9. Nbd2 Re8 10. a3 a5 11. Qc2 e5 12. h3 Bh5 13. Nh4 Rc8 14. Rfe1 b5 15. e3 Bb8 16. Rac1 Nb6 17. g4 Bg6 18. Nxg6 hxg6 {0-1 (132) Sviridov,V (2561)-Nepomniachtchi,I (2773) Chess.com INT 2022} *

[Event "67th Mexican-ch Open 2022"]
[Site "Chihuahua"]
[Date "2022.04.14"]
[Round "2.12"]
[White "Avila Bautista, Roberto Al"]
[Black "Fernandez Hernandez, Arturo A."]
[Result "1/2-1/2"]
[ECO "D11"]
[WhiteElo "2090"]
[BlackElo "2376"]
[Annotator "TA"]
[PlyCount "41"]
[EventDate "2022.04.12"]
[EventType "swiss"]
[EventCountry "MEX"]
[SourceTitle "playchess.com"]
[Source "ChessBase"]
[SourceQuality "1"]
[TimeControl "5400+30"]

{[%evp 15,41,6,27,22,33,23,36,26,54,41,56,43,87,44,102,98,97,89,112,96,138,132,135,131,132,132,137,110]} 1. Nf3 {[%emt 0:00:07]} d5 {[%emt 0:00:32]} 2. b3 {[%emt 0:00:19]} Bg4 {[%emt 0:01:23]} 3. Bb2 {[%emt 0:00:14]} Nd7 {[%emt 0:00:11]} 4. g3 {[%emt 0:01:00]} Ngf6 {[%emt 0:00:34]} 5. Bg2 {[%emt 0:02:17]} e6 {[%emt 0:01:30]} 6. O-O {[%emt 0:00:57]} Bd6 {[%emt 0:01:26]} 7. c4 {[%emt 0:06:27]} c6 {[%emt 0:02:00] is the new trend.} 8. d4 {[%emt 0:03:36]} Qb8 {[%emt 0:01:48]} 9. Nbd2 {[%emt 0:07:51] D11: Slav Defence: 3 Nf3 sidelines and 3...Nf6 4 e3 Bg4.} h6 {[%emt 0:08:56]} 10. Qe1 {[%emt 0:21:54]} O-O {[%emt 0:10:32]} 11. e4 {[%emt 0:05:21][%cal Be2e4,Be4e5][%mdl 32] White is slightly better.} Bb4 {[%emt 0:00:55] [#]} 12. a3 $146 {[%emt 0:08:26]} ({Predecessor:} 12. e5 Ne4 13. Qe3 f5 14. exf6 Nxd2 15. Nxd2 Rxf6 16. f4 Bxd2 17. Qxd2 Bf5 18. Qe2 {0-1 (32) Ionov,S (2515)-Solozhenkin,E (2415) Miedzybrodzie 1991}) 12... Ba5 {[%emt 0:08:58]} 13. b4 {[%emt 0:02:47]} Bc7 {[%emt 0:01:10]} 14. Qe3 {[%emt 0:03:37]} Re8 {[%emt 0:11:12]} (14... dxe4 $14 15. Nxe4 Nxe4 16. Qxe4 Bf5) 15. e5 $36 {[%emt 0:05:21][%mdl 2048] White is on the roll.} Nh7 {[%emt 0:00:06]} 16. h3 {[%emt 0:00:53]} Bxf3 {[%emt 0:04:45]} 17. Bxf3 {[%emt 0:01:03]} b5 {[%emt 0:00:33]} 18. c5 {[%emt 0:01:51] White is clearly better.} a5 {[%emt 0:10:06]} 19. Be2 {[%emt 0:01:54] &Bianco is more active.} axb4 {[%emt 0:09:57]} 20. axb4 {[%emt 0:00:04]} Qb7 {[%emt 0:00:25]} 21. f4 {[%emt 0:07:16] Weighted Error Value: White=0.08 (flawless) /Black=0.18 (very precise)} 1/2-1/2

[Event "67th Mexican-ch Open 2022"]
[Site "Chihuahua"]
[Date "2022.04.14"]
[Round "2.13"]
[White "Galaviz Medina, Sion Radamantys"]
[Black "Hernandez Jimenez, Alexander Andres"]
[Result "1-0"]
[ECO "E38"]
[WhiteElo "2374"]
[BlackElo "2167"]
[Annotator "TA"]
[PlyCount "53"]
[EventDate "2022.04.12"]
[EventType "swiss"]
[EventCountry "MEX"]
[SourceTitle "playchess.com"]
[Source "ChessBase"]
[SourceQuality "1"]
[TimeControl "5400+30"]

{[%evp 17,53,73,130,140,146,130,158,95,99,96,179,190,166,166,229,230,233,218,579,579,599,589,646,645,691,688,658,591,1380,1375,1366,1342,1306,1254,29995,29996,29996,29997]} 1. d4 {[%emt 0:00:02]} Nf6 {[%emt 0:00:00]} 2. c4 {[%emt 0:00:10]} e6 {[%emt 0:00:00]} 3. Nc3 {[%emt 0:00:04]} Bb4 {[%emt 0:00:00]} 4. Qc2 {[%emt 0:00:13]} c5 {[%emt 0:00:04]} 5. dxc5 {[%emt 0:08:29]} Na6 {[%emt 0:01:13]} 6. a3 {[%emt 0:12:25]} Bxc3+ {[%emt 0:00:17]} 7. Qxc3 {[%emt 0:00:06]} Nxc5 {[%emt 0:00:08]} 8. f3 {[%emt 0:01:45]} d5 {[%emt 0:09:53]} 9. cxd5 {[%emt 0:04:11]} Qxd5 {[%emt 0:01:18]} (9... b6 $142) 10. e4 $16 {[%emt 0:00:42] E38: Nimzo-Indian: Classical: 4...c5.} Qh5 {[%emt 0:02:02]} 11. Be3 {[%emt 0:03:22] [#]} b6 $146 {[%emt 0:00:16]} ({Predecessor:} 11... Ncd7 12. Nh3 O-O 13. Be2 b6 14. Nf4 Qe5 15. Qxe5 Nxe5 16. Rc1 Bb7 17. Rc7 Rab8 {1-0 (38) Gordievsky,D (2559)-Antonica,D (2301) Chess.com INT 2020}) 12. g4 {[%emt 0:31:27]} (12. Ne2 $142 {Black must now prevent Nf4.} O-O 13. Nf4) 12... Qh4+ {[%emt 0:19:55]} 13. Bf2 {[%emt 0:00:08] This bishop pair is nice.} Qh6 {[%emt 0:00:01]} (13... Qxf2+ $16 {was worth a try.} 14. Kxf2 Nfxe4+ 15. fxe4 Nxe4+ 16. Ke3 Nxc3) 14. Nh3 {[%emt 0:00:07] [#] And now g5 would win.} ({But not} 14. Bxc5 $6 bxc5 15. h4 (15. Qxc5 Qh4+ 16. Qf2 Qxf2+ 17. Kxf2 O-O $16) 15... Qf4 $16) 14... Nfd7 {[%emt 0:01:00]} 15. b4 $36 {[%emt 0:02:53][%mdl 2048] Black is under strong pressure.} Nb7 {[%emt 0:02:22]} (15... Na4 $142 16. Qc6 Qf6) 16. g5 $18 {[%emt 0:05:25]} Qg6 {[%emt 0:00:17]} 17. Bb5 {[%emt 0:00:07]} Nd6 $2 {[%emt 0:03:56]} (17... O-O {is more resistant.} 18. Rd1 Rd8) 18. Bc6 {[%emt 0:04:54]} Bb7 {[%emt 0:01:49]} 19. Rd1 {[%emt 0:00:58]} Bxc6 {[%emt 0:02:26]} 20. Qxc6 {[%emt 0:00:05]} O-O {[%emt 0:00:05]} 21. Qxd6 {[%emt 0:00:08]} Rfd8 {[%emt 0:00:43]} 22. O-O {[%emt 0:03:28][%cal Bh1f1,Bf1c1,Bc1c8][%mdl 32]} Nf8 {[%emt 0:00:18]} 23. Qxd8 {[%emt 0:00:30]} Rxd8 {[%emt 0:00:06]} 24. Rxd8 {[%emt 0:00:05]} Qh5 {[%emt 0:02:58] [#]} 25. Rc1 $1 {[%emt 0:00:26][%cal Oc1c8] Intending Rcc8! and mate.} Qxh3 {[%emt 0:00:23]} (25... Qxf3 26. Rcc8) 26. Rcc8 {[%emt 0:00:05][%csl Gc8][%cal Rd8f8]} h6 {[%emt 0:00:19]} 27. g6 {[%emt 0:00:03] Weighted Error Value: White=0.12 (very precise) /Black=0.89} 1-0

[Event "67th Mexican-ch Open 2022"]
[Site "Chihuahua"]
[Date "2022.04.14"]
[Round "2.13"]
[White "Rivera Garcia, David Moises"]
[Black "Galaviz Medina, Sion Radamantys"]
[Result "*"]
[WhiteElo "1780"]
[BlackElo "2374"]
[Annotator "TA"]
[PlyCount "35"]
[EventDate "2022.04.12"]
[EventType "swiss"]
[EventCountry "MEX"]
[SourceTitle "playchess.com"]
[Source "ChessBase"]
[SourceQuality "1"]
[TimeControl "5400+30"]

{[%evp 9,10,39,47]} 1. d4 {[%emt 0:00:02]} Nf6 {[%emt 1:31:00]} 2. c4 {[%emt 0:00:10]} e6 {[%emt 0:00:00]} 3. Nc3 {[%emt 0:00:04]} Bb4 {[%emt 0:00:00]} 4. Qc2 {[%emt 0:00:13]} c5 {[%emt 0:00:04]} 5. dxc5 {[%emt 0:08:29]} Na6 {[%emt 0:01:13] [#]} {Predecessor:} 6. a3 $146 {E38: Nimzo-Indian: Classical: 4...c5.} Bxc3+ 7. Qxc3 Nxc5 8. b4 Nce4 9. Qc2 d5 10. f3 Nd6 11. c5 Nf5 12. e3 e5 13. Bb5+ Kf8 14. Ne2 a5 15. Rb1 axb4 16. axb4 d4 17. e4 Nh4 18. O-O {1-0 (34) So,W (2770)-Duda,J (2743) Chess.com INT 2020} *

[Event "67th Mexican-ch Open 2022"]
[Site "Chihuahua"]
[Date "2022.04.14"]
[Round "2.14"]
[White "Diaz Rosas, Julio Cesar"]
[Black "Pena Davalos, David"]
[Result "*"]
[ECO "C83"]
[WhiteElo "2393"]
[BlackElo "1761"]
[Annotator "TA"]
[PlyCount "41"]
[EventDate "2022.04.12"]
[EventType "swiss"]
[EventCountry "MEX"]
[SourceTitle "playchess.com"]
[Source "ChessBase"]
[SourceQuality "1"]
[TimeControl "5400+30"]

{[%evp 19,20,31,60]} 1. e4 {[%emt 0:00:02]} e5 {[%emt 0:00:40]} 2. Nf3 {[%emt 0:00:06]} Nc6 {[%emt 0:00:06]} 3. Bb5 {[%emt 0:00:03]} a6 {[%emt 0:00:06]} 4. Ba4 {[%emt 0:00:05]} Nf6 {[%emt 0:00:08]} 5. O-O {[%emt 0:00:10]} Nxe4 {[%emt 0:00:08]} 6. d4 {[%emt 0:00:06]} b5 {[%emt 0:00:07]} 7. Bb3 {[%emt 0:00:05]} d5 {[%emt 0:00:06]} 8. dxe5 {[%emt 0:00:05]} Be6 {[%emt 0:00:06]} 9. Nbd2 {[%emt 0:00:13]} Be7 {[%emt 0:00:37]} 10. c3 {[%emt 0:00:20]} O-O {[%emt 0:00:25] [#]} {Predecessor:} 11. Bc2 $146 {C83: Open Ruy Lopez: 9 c3 Be7.} f5 12. exf6 Nxf6 13. a4 b4 14. Re1 Bg4 15. h3 Bh5 16. Nf1 Bc5 17. Be3 Qd6 18. Ng3 Bxf3 19. Qxf3 Ne5 20. Qe2 Bxe3 21. Qxe3 {1-0 (48) Vachier Lagrave,M (2761)-Matlakov,M (2674) Warsaw 2021} *

[Event "67th Mexican-ch Open 2022"]
[Site "Chihuahua"]
[Date "2022.04.14"]
[Round "2.14"]
[White "Jorajuria Mendoza, Algol"]
[Black "Diaz Rosas, Julio Cesar"]
[Result "0-1"]
[ECO "C83"]
[WhiteElo "2006"]
[BlackElo "2393"]
[Annotator "TA"]
[PlyCount "48"]
[EventDate "2022.04.12"]
[EventType "swiss"]
[EventCountry "MEX"]
[SourceTitle "playchess.com"]
[Source "ChessBase"]
[SourceQuality "1"]
[TimeControl "5400+30"]

{[%evp 23,48,12,22,-12,-5,-29,-39,-39,-30,-69,-72,-115,130,125,116,71,75,76,112,98,99,-357,-346,-789,-786,-734,-710]} 1. e4 {[%emt 0:00:02] TFS} e5 {[%emt 0:00:40]} 2. Nf3 {[%emt 0:00:06]} Nc6 {[%emt 0:00:06]} 3. Bb5 {[%emt 0:00:03]} a6 {[%emt 0:00:06]} 4. Ba4 {[%emt 0:00:05]} Nf6 {[%emt 0:00:08]} 5. O-O {[%emt 0:00:10]} Nxe4 {[%emt 0:00:08]} 6. d4 {[%emt 0:00:06]} b5 {[%emt 0:00:07]} 7. Bb3 {[%emt 0:00:05]} d5 {[%emt 0:00:06]} 8. dxe5 {[%emt 0:00:05]} Be6 {[%emt 0:00:06]} 9. Nbd2 {[%emt 0:00:13]} Be7 {[%emt 0:00:37]} 10. c3 {[%emt 0:00:20]} O-O {[%emt 0:00:25]} 11. Bc2 {[%emt 0:13:48]} f5 {[%emt 0:01:06]} 12. exf6 {[%emt 0:01:46]} Nxf6 {[%emt 0:00:07]} 13. Qe2 {[%emt 0:07:29] 13.Re1 is a critical line. C83: Open Ruy Lopez: 9 c3 Be7.} Qd7 {[%emt 0:03:07]} 14. Nd4 {[%emt 0:07:46]} Nxd4 {[%emt 0:02:43]} 15. cxd4 {[%emt 0:00:04] Black is slightly better.} Bd6 {[%emt 0:02:49]} 16. Nb3 {[%emt 0:03:58]} Rae8 {[%emt 0:11:30] [#] ...Bg4 is the strong threat.} 17. Nc5 $146 {[%emt 0:10:06]} ({Predecessor:} 17. f3 Qf7 18. Qd3 Qh5 19. h3 g6 20. Bd2 Bf5 21. Qc3 b4 22. Qc6 Re6 23. Bxf5 {½-½ (52) Bergqvist,A-Lundin,E Stockholm 1943 EXT 2020 [TFS]}) 17... Bxh2+ $2 {[%emt 0:17:49]} 18. Kxh2 $16 {[%emt 0:00:36]} Qd6+ {[%emt 0:00:07]} 19. Kg1 {[%emt 0:11:56] aiming for Qf3.} Bf5 {[%emt 0:06:31]} 20. Qd2 {[%emt 0:06:03]} Bxc2 {[%emt 0:02:28]} 21. Qxc2 {[%emt 0:00:07] And now Qd1 would win.} Ng4 {[%emt 0:00:24][%csl Gg4][%cal Rd6h2] [#]} 22. g3 $2 {[%emt 0:03:45][%mdl 8192] [#]} (22. f4 $1 $16 {is necessary to keep the advantage.}) 22... Rxf2 $1 $19 {[%emt 0:01:17][%mdl 64] Decoy} 23. Qxf2 {[%emt 0:02:41]} (23. Rxf2 $2 {gets mated.} Qxg3+ 24. Kh1 Re1+) (23. Qd3 Rxf1+ 24. Kxf1 Qf6+ 25. Bf4) 23... Nxf2 {[%emt 0:00:05]} 24. Kxf2 {[%emt 0:00:17]} Qf6+ {[%emt 0:00:34][%mdl 64] Skewer, Double Attack.  Weighted Error Value: White=1.26/Black=0.41} 0-1